[Event "Bhopal GM Open 2019"]
[Site "Bhopal"]
[Date "2019.12.24"]
[Round "5.18"]
[White "Suthershun A"]
[Black "Mahindrakar Indrajeet"]
[Result "1/2-1/2"]
[ECO "B04"]
[WhiteElo "1743"]
[BlackElo "2042"]
[Annotator "NA RC"]
[PlyCount "120"]
[EventDate "2019.12.21"]
[EventType "swiss"]
[EventCountry "IND"]
[SourceTitle "playchess.com"]
[Source "ChessBase"]
[SourceQuality "1"]
[TimeControl "5400+30"]

1. e4 {[%emt 0:00:00]} Nf6 {[%emt 0:00:41]} 2. e5 {[%emt 0:00:14]} Nd5 {[%emt 0:00:11]} 3. d4 {[%emt 0:00:12]} d6 4. Nf3 dxe5 5. Nxe5 c6 6. Be2 Bf5 7. O-O Nd7 8. f4 Nxe5 9. fxe5 e6 10. Bd3 Bxd3 11. Qxd3 Be7 12. c4 Nb4 13. Qe4 O-O 14. a3 Na6 15. Nc3 Nc7 16. Be3 Qd7 17. Rad1 Rad8 18. Qg4 Kh8 19. Ne4 f5 20. exf6 gxf6 21. Qh5 Qe8 22. Qa5 Qg6 23. Qxc7 Qxe4 24. Qxe7 Qxe3+ 25. Kh1 Qb3 26. Qxe6 Rde8 27. Qd6 Qxb2 28. d5 cxd5 29. cxd5 Qe5 30. Qb4 Rg8 31. d6 b6 32. d7 Rd8 33. Qd6 Qxd6 34. Rxd6 Rg7 35. Rfd1 Re7 36. Kg1 Kg7 37. Kf2 Kf7 38. R1d3 Re6 39. R6d4 Re5 40. Rh3 h5 41. Rc3 Ra5 42. Kf3 Ke6 43. Re3+ Re5 44. Red3 Rc5 45. Re4+ Re5 46. Red4 Rc5 47. Kf4 Rf5+ 48. Ke4 Rg5 49. Kf3 Re5 50. Rd6+ Ke7 51. Rc6 Rf5+ 52. Ke4 Rf2 53. Rc7 Rxg2 54. Rxa7 Rxh2 55. Kf5 Rf2+ 56. Kg6 Rg2+ 57. Kf5 Rf2+ 58. Ke4 Re2+ 59. Kf3 Re5 60. a4 Ra5 1/2-1/2

[Event "Bhopal GM Open 2019"]
[Site "Bhopal"]
[Date "2019.12.24"]
[Round "5.19"]
[White "Krishnan Ritvik"]
[Black "Sri Sai Baswanth P"]
[Result "1/2-1/2"]
[ECO "A61"]
[WhiteElo "1742"]
[BlackElo "2027"]
[Annotator "NA RC"]
[PlyCount "47"]
[EventDate "2019.12.21"]
[EventType "swiss"]
[EventCountry "IND"]
[SourceTitle "playchess.com"]
[Source "ChessBase"]
[SourceQuality "1"]
[TimeControl "5400+30"]

1. d4 {[%emt 0:00:00]} Nf6 {[%emt 0:00:07]} 2. c4 {[%emt 0:00:00]} c5 {[%emt 0:00:05]} 3. d5 {[%emt 0:00:00]} e6 {[%emt 0:00:04]} 4. Nc3 {[%emt 0:00:15]} exd5 {[%emt 0:00:07]} 5. cxd5 {[%emt 0:00:05]} d6 {[%emt 0:00:04]} 6. Nf3 {[%emt 0:00:30]} g6 {[%emt 0:00:06]} 7. Bf4 {[%emt 0:00:24]} a6 {[%emt 0:00:05]} 8. a4 {[%emt 0:00:08]} Bg7 {[%emt 0:00:06]} 9. h3 {[%emt 0:00:51]} O-O {[%emt 0:00:07]} 10. e3 {[%emt 0:00:34]} Ne8 {[%emt 0:00:08] A61: Modern Benoni: Nf3 without early e4} 11. Be2 {[%emt 0:00:39]} Nd7 {[%emt 0:00:13]} 12. O-O {[%emt 0:01:15]} f5 {[%emt 0:00:04]} (12... Rb8 13. a5 b5 14. axb6 Rxb6 15. Qc2 Qe7 16. Nd2 Ne5 17. Bh2 f5 18. Rfe1 {1-0 (36) Gledura,B (2622)-Perunovic,M (2604) Hungary 2019}) 13. Bh2 $146 {[%emt 0:04:49]} ({Predecessor:} 13. Qc2 Qe7 14. Rab1 Rb8 15. b4 Nef6 16. Nd2 h6 17. Bh2 Ne8 18. a5 {1-0 (30) Bitan,B (2368)-Ivanov,M (2260) Windsor 2016}) 13... Ne5 {[%emt 0:00:30]} 14. Nxe5 {[%emt 0:00:30]} dxe5 {[%emt 0:00:30]} 15. a5 {[%emt 0:00:30]} Nd6 {[%emt 0:00:30]} 16. Qb3 {[%emt 0:00:30]} Bd7 {[%emt 0:00:30]} 17. Na4 {[%emt 0:00:30]} Bxa4 {[%emt 0:00:30]} 18. Qxa4 {[%emt 0:00:30]} Rc8 {[%emt 0:00:30]} 19. b3 {[%emt 0:00:30]} Rc7 {[%emt 0:00:30]} 20. Rac1 {[%emt 0:00:30]} Qe7 {[%emt 0:00:30]} 21. Rfd1 {[%emt 0:00:30]} g5 {[%emt 0:00:30]} 22. Rc2 {[%emt 0:00:30]} Rfc8 {[%emt 0:00:30]} 23. Rdc1 {[%emt 0:00:30]} h6 {[%emt 0:00:30]} 24. Qa3 $14 {[%emt 0:00:30]} 1/2-1/2

[Event "Bhopal GM Open 2019"]
[Site "Bhopal"]
[Date "2019.12.24"]
[Round "5.20"]
[White "Satvik Sharma"]
[Black "Rathneesh R"]
[Result "0-1"]
[ECO "A45"]
[WhiteElo "1740"]
[BlackElo "2006"]
[Annotator "NA RC"]
[PlyCount "28"]
[EventDate "2019.12.21"]
[EventType "swiss"]
[EventCountry "IND"]
[SourceTitle "playchess.com"]
[Source "ChessBase"]
[SourceQuality "1"]
[TimeControl "5400+30"]

1. d4 {[%emt 0:00:00]} Nf6 {[%emt 0:00:00]} 2. Bf4 {[%emt 0:00:00]} d5 {[%emt 0:00:56]} 3. e3 {[%emt 0:00:00]} c5 {[%emt 0:00:27]} 4. Nc3 {[%emt 0:00:00]} cxd4 {[%emt 0:02:40]} 5. exd4 {[%emt 0:00:05]} a6 {[%emt 0:00:30]} 6. Bd3 {[%emt 0:00:30]} Nc6 {[%emt 0:00:44]} 7. Nge2 {[%emt 0:00:58]} Nb4 {[%emt 0:02:43]} 8. h3 {[%emt 0:01:15]} e6 {[%emt 0:00:30]} 9. O-O {[%emt 0:00:30]} Bd6 {[%emt 0:00:30]} 10. Bxd6 {[%emt 0:00:30]} Qxd6 {[%emt 0:00:30]} 11. Ng3 {[%emt 0:00:30]} Nxd3 {[%emt 0:00:30]} 12. Qxd3 {[%emt 0:00:30]} O-O {[%emt 0:00:30]} 13. Rfe1 {[%emt 0:00:30]} b5 {[%emt 0:00:30]} 14. a3 {[%emt 0:00:30]} Bd7 $11 {[%emt 0:00:30]} 0-1

[Event "Bhopal GM Open 2019"]
[Site "Bhopal"]
[Date "2019.12.24"]
[Round "6.5"]
[White "Nigmatov, Ortik"]
[Black "Varun, Vij"]
[Result "1-0"]
[ECO "A04"]
[WhiteElo "2474"]
[BlackElo "1964"]
[Annotator "RC"]
[PlyCount "95"]
[EventDate "2019.12.21"]
[EventType "swiss"]
[EventCountry "IND"]
[SourceTitle "playchess.com"]
[Source "ChessBase"]
[SourceQuality "1"]
[TimeControl "5400+30"]

1. Nf3 {[%emt 0:00:00]} c5 {[%emt 0:00:23]} 2. e3 {[%emt 0:00:22]} Nf6 {[%emt 0:00:16]} 3. c4 {[%emt 0:00:41]} g6 {[%emt 0:00:08]} 4. Nc3 {[%emt 0:01:02]} Bg7 {[%emt 0:00:06]} 5. d4 {[%emt 0:00:49]} cxd4 {[%emt 0:00:54]} 6. exd4 {[%emt 0:00:06]} d5 {[%emt 0:00:04]} 7. Bg5 {[%emt 0:00:20]} O-O {[%emt 0:00:08]} 8. Bxf6 {[%emt 0:09:09]} Bxf6 {[%emt 0:00:32]} 9. Nxd5 {[%emt 0:01:24]} Bg7 {[%emt 0:00:20]} 10. Ne3 {[%emt 0:10:20]} Nc6 {[%emt 0:09:54]} 11. d5 {[%emt 0:17:24]} Qa5+ {[%emt 0:00:16]} 12. Nd2 {[%emt 0:01:40]} Bxb2 {[%emt 0:00:41]} 13. dxc6 {[%emt 0:01:31]} Rd8 {[%emt 0:03:43]} 14. Rc1 {[%emt 0:07:57]} Bxc1 {[%emt 0:02:52]} 15. Qxc1 {[%emt 0:00:26]} bxc6 {[%emt 0:00:08]} 16. Qc2 {[%emt 0:00:29]} Bf5 {[%emt 0:06:56]} 17. Nxf5 {[%emt 0:08:42]} gxf5 {[%emt 0:00:37]} 18. h4 {[%emt 0:05:49]} Rab8 {[%emt 0:15:25]} 19. Be2 {[%emt 0:00:59]} Rb7 {[%emt 0:05:22]} 20. Rh3 {[%emt 0:01:21]} Rbd7 {[%emt 0:00:21]} 21. Rg3+ {[%emt 0:04:20]} Kf8 {[%emt 0:01:27]} 22. Rd3 {[%emt 0:00:05]} Rxd3 {[%emt 0:00:56]} 23. Bxd3 {[%emt 0:00:01]} Qe5+ {[%emt 0:02:28]} 24. Be2 {[%emt 0:00:10]} Qa5 {[%emt 0:02:37]} 25. Qb2 {[%emt 0:01:29]} f6 {[%emt 0:05:38]} 26. Bf3 {[%emt 0:00:46]} Rd6 {[%emt 0:04:36]} 27. Ke2 {[%emt 0:00:51]} Kg7 {[%emt 0:00:25]} 28. g4 {[%emt 0:04:15]} fxg4 {[%emt 0:04:48]} 29. Bxg4 {[%emt 0:00:08]} c5 {[%emt 0:00:22]} 30. Qc2 {[%emt 0:01:52]} Qb4 {[%emt 0:04:37]} 31. Nf1 {[%emt 0:03:21]} Rb6 {[%emt 0:05:11]} 32. Qe4 {[%emt 0:01:13]} Qb2+ {[%emt 0:00:35]} 33. Nd2 {[%emt 0:01:31]} e5 {[%emt 0:05:44]} 34. Qg2 {[%emt 0:01:50]} Qd4 {[%emt 0:07:36]} 35. Be6+ {[%emt 0:02:47]} Kh6 {[%emt 0:00:42]} 36. Qg8 {[%emt 0:01:21]} Qd6 {[%emt 0:04:25]} 37. Bf5 {[%emt 0:01:12]} Qe7 {[%emt 0:00:14]} 38. Ne4 {[%emt 0:01:43]} Qg7 {[%emt 0:00:09]} 39. Qd8 {[%emt 0:01:01]} Qf7 {[%emt 0:01:46]} 40. Kf3 {[%emt 0:01:51]} Ra6 {[%emt 0:02:21]} 41. Ng3 {[%emt 0:01:52]} Kg7 {[%emt 0:00:38]} 42. Be4 {[%emt 0:00:26]} Ra3+ {[%emt 0:01:40]} 43. Kg2 {[%emt 0:00:12]} Rxg3+ {[%emt 0:00:15]} 44. Kxg3 {[%emt 0:00:43]} Qxc4 {[%emt 0:00:43]} 45. Qe7+ {[%emt 0:00:08]} Kg8 {[%emt 0:00:55]} 46. Qxh7+ {[%emt 0:00:27]} Kf8 {[%emt 0:00:06]} 47. Qh6+ {[%emt 0:00:32]} Kf7 {[%emt 0:00:23]} 48. Qg6+ {[%emt 0:00:05]} 1-0

[Event "Bhopal GM Open 2019"]
[Site "Bhopal"]
[Date "2019.12.25"]
[Round "7.14"]
[White "Varun, Vij"]
[Black "Darsh Kansal"]
[Result "1-0"]
[ECO "A45"]
[WhiteElo "1964"]
[BlackElo "1793"]
[Annotator "NA RC"]
[PlyCount "59"]
[EventDate "2019.12.21"]
[EventType "swiss"]
[EventCountry "IND"]
[SourceTitle "playchess.com"]
[Source "ChessBase"]
[SourceQuality "1"]
[TimeControl "5400+30"]

{[%evp 10,59,18,45,37,47,64,32767,32767,98,32767,32767,32767,32767,32767,32767,32767,32767,32767,32767,32767,32767,137,155,163,89,235,109,144,204,233,256,198,49,91,37,722,872,804,1023,2067,1008,1423,758,717,795,813,905,811,1012,1082,926]} 1. d4 {[%emt 0:00:00]} Nf6 {[%emt 0:00:00]} 2. Bf4 {[%emt 0:00:00]} g6 {[%emt 0:00:00]} 3. Nc3 {[%emt 0:00:00]} d5 {[%emt 0:00:00]} 4. e3 {[%emt 0:00:00]} Bg7 {[%emt 0:00:07]} 5. h4 {[%emt 0:00:19]} b6 {[%emt 0:01:08]} (5... c6 6. Be2 Qb6 7. Rb1 h5 8. Nf3 Bg4 9. Ne5 Bxe2 10. Qxe2 Nbd7 11. Qf3 Qa6 {0-1 (32) Karjakin,S (2750)-Yu,Y (2752) Saint Louis 2019}) 6. Nf3 {[%emt 0:03:14] A45: Trompowsky Attack} Bb7 {[%emt 0:00:27]} 7. Ne5 {[%emt 0:00:18]} a6 {[%emt 0:01:34]} 8. h5 {[%emt 0:05:39]} Nfd7 $146 {[%emt 0:00:43]} ({Predecessor:} 8... Nbd7 9. hxg6 hxg6 10. Rxh8+ Bxh8 11. Qf3 {1-0 (53) Lewtak,D (2369)-Shishkin,V (2461) Polanica Zdroj 2018}) 9. hxg6 {[%emt 0:07:34]} hxg6 {[%emt 0:00:33]} 10. Rxh8+ {[%emt 0:00:32]} Bxh8 {[%emt 0:00:01]} 11. Qg4 {[%emt 0:01:23]} Nxe5 {[%emt 0:00:33]} 12. dxe5 {[%emt 0:00:19]} e6 {[%emt 0:00:26]} 13. Bd3 {[%emt 0:03:28]} Qe7 {[%emt 0:00:16]} 14. Bg5 {[%emt 0:04:50]} Qf8 {[%emt 0:00:27]} 15. f4 {[%emt 0:12:00]} Qg8 {[%emt 0:16:03]} 16. O-O-O {[%emt 0:00:07]} Nd7 {[%emt 0:01:43]} 17. Rh1 {[%emt 0:02:29]} (17. e4 $142) 17... Nc5 {[%emt 0:01:05] [#]} (17... Bg7 $16) 18. Be2 {[%emt 0:08:07]} (18. Bxg6 $1 $18 {[%mdl 512]} a5 (18... fxg6 19. b4) 19. Bh5) 18... Bc6 {[%emt 0:02:09]} 19. b4 {[%emt 0:01:25]} Na4 {[%emt 0:01:02]} 20. Nxa4 {[%emt 0:01:25]} Bxa4 {[%emt 0:00:01]} 21. Rh4 $2 {[%emt 0:00:58]} (21. Qf3 $18) 21... Qf8 {[%emt 0:07:43]} 22. Bd3 {[%emt 0:00:14]} Bd7 $2 {[%emt 0:06:35]} (22... Kd7 $16) 23. Rh7 {[%emt 0:02:03]} Bg7 {[%emt 0:01:42]} 24. Bh4 {[%emt 0:00:49]} Qg8 {[%emt 0:19:04]} 25. Bxg6 {[%emt 0:00:18]} Kf8 {[%emt 0:00:10]} 26. Bd3 {[%emt 0:10:14]} (26. Bf6 $142 a5 27. Qh4 fxg6 28. Rxg7 Qxg7 29. Bxg7+ Kxg7 30. Qe7+ {[%mdl 64] Double Attack} Kh6 31. Qxd7) 26... Bb5 {[%emt 0:01:13]} 27. Qg5 {[%emt 0:00:18]} Re8 {[%emt 0:00:50]} 28. Qh5 {[%emt 0:02:01]} Bxd3 {[%emt 0:01:49]} 29. cxd3 {[%emt 0:00:02]} d4 $18 {[%emt 0:00:57]} 30. Bf6 {[%emt 0:00:40]} 1-0

[Event "Bhopal GM Open 2019"]
[Site "Bhopal"]
[Date "2019.12.25"]
[Round "7.16"]
[White "Jay Kundaliya"]
[Black "Lund Rachit"]
[Result "0-1"]
[ECO "A14"]
[WhiteElo "2088"]
[BlackElo "1625"]
[Annotator "NA RC"]
[PlyCount "76"]
[EventDate "2019.12.21"]
[EventType "swiss"]
[EventCountry "IND"]
[SourceTitle "playchess.com"]
[Source "ChessBase"]
[SourceQuality "1"]
[TimeControl "5400+30"]

1. c4 {[%emt 0:03:57]} Nf6 {[%emt 0:01:28]} 2. g3 {[%emt 0:00:29]} e6 {[%emt 0:00:17]} 3. Bg2 {[%emt 0:00:06]} d5 {[%emt 0:00:35]} 4. Nf3 {[%emt 0:01:25]} Be7 {[%emt 0:00:33]} 5. O-O {[%emt 0:00:04]} O-O {[%emt 0:00:27]} 6. b3 {[%emt 0:00:45]} b6 {[%emt 0:02:32]} 7. e3 {[%emt 0:03:31]} Bb7 {[%emt 0:03:19]} 8. Bb2 {[%emt 0:03:57]} Nbd7 {[%emt 0:11:56]} 9. Nc3 {[%emt 0:01:57]} c5 {[%emt 0:01:09]} 10. cxd5 {[%emt 0:00:48]} exd5 {[%emt 0:09:35]} 11. d4 {[%emt 0:01:55]} Re8 {[%emt 0:03:33] E17: Queen's Indian: 4 g3 Bb7 5 Bg2 Be7} (11... Rc8 12. Rc1 Re8 13. dxc5 bxc5 14. Nh4 Nb6 15. a4 a5 16. Nb5 Ba6 17. Re1 Bf8 18. Qf3 Ne4 19. Red1 Bxb5 20. axb5 a4 21. bxa4 Nxa4 {0-1 (61) Sonis,F (2445)-Brunello,S (2542) Chianciano Terme 2018}) 12. Qc2 {[%emt 0:16:08]} Rc8 {[%emt 0:02:44]} 13. Rac1 {[%emt 0:09:26]} Ne4 {[%emt 0:02:45]} 14. dxc5 {[%emt 0:04:03]} Bxc5 $146 {[%emt 0:05:02]} ({Predecessor:} 14... Nxc3 15. Qxc3 Bf6 16. Qd2 bxc5 17. Rfd1 Bxb2 18. Qxb2 Nf6 19. Rc2 Qb6 20. Rdc1 {1-0 (94) Mgeladze,T (2374)-Der Manuelian,H (2242) Poti 2018}) 15. Qd3 {[%emt 0:05:49]} (15. Nd2 $11) 15... Ndf6 {[%emt 0:06:17] Remove Defender, Decoy} (15... Nxf2 $5 16. Rxf2 Bxe3 $17 {[%mdl 64] Double Attack}) 16. Bh3 $2 {[%emt 0:16:09] [#]} (16. Nxe4 $11 dxe4 17. Qxd8 Rcxd8 18. Ne5) 16... Rc7 $2 {[%emt 0:24:21]} (16... Nxf2 $1 $19 {[%mdl 512]} 17. Rxf2 Rxe3) 17. Nb5 {[%emt 0:06:29]} Rce7 {[%emt 0:07:54]} 18. Nbd4 {[%emt 0:00:26]} ({Of course not} 18. Nxa7 Qa8 $15) 18... Rc7 {[%emt 0:01:55]} 19. a3 {[%emt 0:05:33]} a5 {[%emt 0:00:39]} 20. Nb5 {[%emt 0:00:47]} Ba6 {[%emt 0:01:07]} 21. b4 {[%emt 0:07:23]} axb4 {[%emt 0:03:19]} 22. axb4 {[%emt 0:00:03]} Nxf2 $16 {[%emt 0:01:15]} (22... Nd6 $14 23. bxc5 Rxc5) 23. Rxf2 {[%emt 0:05:50]} Rxe3 {[%emt 0:02:26]} 24. Rxc5 {[%emt 0:01:06]} Rxd3 {[%emt 0:01:06]} 25. Rxc7 {[%emt 0:00:02]} Ne4 {[%emt 0:01:49]} 26. Rd7 {[%emt 0:01:37]} Qf8 {[%emt 0:01:37]} 27. Na7 {[%emt 0:02:22]} Nxf2 {[%emt 0:01:21]} 28. Kxf2 {[%emt 0:00:02]} Bc8 {[%emt 0:01:35]} 29. Bxg7 {[%emt 0:00:35]} Kxg7 {[%emt 0:00:57]} 30. Nxc8 {[%emt 0:00:02]} Qxb4 {[%emt 0:00:42]} 31. Rxf7+ {[%emt 0:02:12]} Kxf7 {[%emt 0:00:17]} 32. Ne5+ {[%emt 0:00:04]} Kg7 {[%emt 0:00:11]} 33. Nxd3 {[%emt 0:00:15]} Qd2+ {[%emt 0:00:01]} 34. Kf3 {[%emt 0:00:23]} Qxd3+ 35. Kf4 Qe4+ {[%emt 0:00:37]} 36. Kg5 {[%emt 0:00:35]} h6+ {[%emt 0:00:05]} 37. Kh5 {[%emt 0:00:03]} Qg6+ {[%emt 0:00:01]} 38. Kh4 {[%emt 0:00:01]} Qg5# {[%emt 0:00:01]} 0-1

[Event "Bhopal GM Open 2019"]
[Site "Bhopal"]
[Date "2019.12.25"]
[Round "7.19"]
[White "Daakshin Arun"]
[Black "Rathneesh R"]
[Result "0-1"]
[ECO "E47"]
[WhiteElo "1760"]
[BlackElo "2006"]
[Annotator "NA RC"]
[PlyCount "150"]
[EventDate "2019.12.21"]
[EventType "swiss"]
[EventCountry "IND"]
[SourceTitle "playchess.com"]
[Source "ChessBase"]
[SourceQuality "1"]
[TimeControl "5400+30"]

{[%evp 8,140,14,4,12,0,16,1,32767,32767,32767,32767,32767,32767,32767,32767,32767,-12,-12,-107,-43,-47,-24,-27,-10,-23,-18,-18,-7,-42,-29,-46,-17,-11,-14,-38,-20,-24,0,-36,0,-5,-1,-31,-10,-31,-15,-21,32767,32767,32767,32767,32767,32767,-5,-21,-36,-32,-21,-57,-68,-92,-105,-105,-108,-146,-80,-133,-134,-143,-170,-192,32767,32767,32767,32767,32767,32767,32767,32767,32767,32767,32767,32767,-551,32767,32767,32767,32767,32767,-206,-191,32767,32767,32767,32767,32767,32767,-884,-12837,32767,32767,32767,32767,32767,-239,32767,32767,32767,32767,-207,-264,-1160,32767,32767,32767,32767,32767,32767,32767,32767,-12850,-29966,-12849,32767,32767,32767,32767,32767,32767,32767,32767,32767,-12845,-12846]} 1. d4 {[%emt 0:00:00]} Nf6 {[%emt 0:00:02]} 2. c4 {[%emt 0:00:00]} e6 {[%emt 0:00:17]} 3. Nc3 {[%emt 0:00:00]} Bb4 {[%emt 0:00:25]} 4. e3 {[%emt 0:00:00]} O-O {[%emt 0:01:31]} 5. Bd3 {[%emt 0:00:12]} c5 {[%emt 0:01:17]} 6. Nge2 {[%emt 0:00:38]} d5 {[%emt 0:01:29]} 7. cxd5 {[%emt 0:00:22]} cxd4 {[%emt 0:05:30]} 8. exd4 {[%emt 0:00:29]} Nxd5 {[%emt 0:00:34]} 9. O-O {[%emt 0:00:27]} Nc6 {[%emt 0:01:46]} 10. Qc2 {[%emt 0:00:42]} h6 {[%emt 0:01:23] E48: Nimzo-Indian: Rubinstein: 5 Bd3 d5 including 6 Ne2, but excluding 6 a3} (10... g6 11. a3 Be7 12. Bh6 Re8 13. Nxd5 exd5 14. Rfe1 Bf6 15. Qd2 Bg4 16. f3 Bd7 17. Bb5 Nxd4 18. Nxd4 Bxb5 19. Rxe8+ Bxe8 {0-1 (100) Laznicka,V (2654)-Kelires,A (2510) Heraklio 2017}) 11. Rd1 {[%emt 0:00:39]} Bd6 {[%emt 0:03:07]} 12. Nxd5 {[%emt 0:00:49]} exd5 {[%emt 0:00:15]} 13. Ng3 $146 {[%emt 0:01:04]} ({Predecessor:} 13. Bf4 $11 Re8 14. Bxd6 Qxd6 {½-½ (14) Schweda,R (2330)-Stanec,N (2490) Leiner 1996}) 13... Bg4 {[%emt 0:11:14]} ({Black should play} 13... Qh4 $17 14. Qa4 Be6) 14. Be2 {[%emt 0:00:47]} Nb4 {[%emt 0:08:18]} 15. Qd2 {[%emt 0:01:25]} Qh4 {[%emt 0:06:21]} 16. Bxg4 {[%emt 0:01:14]} Qxg4 {[%emt 0:00:14]} 17. a3 {[%emt 0:01:01]} Bxg3 {[%emt 0:05:55]} 18. axb4 {[%emt 0:01:29]} (18. hxg3 $5 {[%cal Ra3b4]} Nc6 19. Qd3 $11) 18... Bd6 {[%emt 0:02:54]} 19. b5 {[%emt 0:03:43]} Rfe8 {[%emt 0:03:36]} 20. Qd3 {[%emt 0:01:15]} Re6 {[%emt 0:05:36]} 21. h3 {[%emt 0:06:07]} Qh4 {[%emt 0:02:08]} 22. Be3 {[%emt 0:04:19]} Rg6 {[%emt 0:03:11]} 23. Kf1 {[%emt 0:02:28]} Qe7 {[%emt 0:04:25]} 24. Re1 {[%emt 0:02:24]} Qd7 {[%emt 0:01:13]} 25. Re2 {[%emt 0:07:06]} Bf8 {[%emt 0:01:54]} 26. b3 {[%emt 0:02:23]} Rb6 {[%emt 0:01:55]} 27. Rea2 $1 {[%emt 0:00:16]} Qxb5 {[%emt 0:01:13]} 28. Qxb5 {[%emt 0:00:08]} Rxb5 {[%emt 0:00:02]} 29. Rxa7 {[%emt 0:00:07]} Rxa7 {[%emt 0:00:44]} 30. Rxa7 {[%emt 0:00:10]} Rxb3 {[%emt 0:00:13]} 31. Ra8 {[%emt 0:04:27]} f6 {[%emt 0:05:05]} 32. Rd8 {[%emt 0:00:17]} Rb5 {[%emt 0:01:16]} 33. Bf4 {[%emt 0:00:15]} Kf7 {[%emt 0:00:39]} 34. Rd7+ {[%emt 0:00:59]} Ke6 {[%emt 0:01:29]} 35. Rd8 {[%emt 0:00:43]} Be7 {[%emt 0:00:35]} 36. Rc8 {[%emt 0:00:38]} Rb2 {[%emt 0:01:04]} 37. Rb8 {[%emt 0:00:27]} ({White should try} 37. g4) 37... g5 {[%emt 0:05:13]} 38. Be3 {[%emt 0:00:25]} b5 {[%emt 0:01:53]} 39. Rb6+ {[%emt 0:00:54]} Bd6 {[%emt 0:02:32]} 40. h4 {[%emt 0:00:35]} b4 {[%emt 0:02:08]} 41. hxg5 {[%emt 0:00:06]} hxg5 {[%emt 0:01:16]} 42. Rb5 {[%emt 0:00:51]} Ra2 {[%emt 0:03:34]} 43. g3 {[%emt 0:01:13]} Be7 {[%emt 0:01:56]} 44. Ke1 {[%emt 0:00:26]} Bd6 {[%emt 0:03:14]} 45. Bd2 {[%emt 0:00:48] [#]} Kd7 $1 {[%emt 0:01:21]} 46. Rxd5 {[%emt 0:01:01]} Kc6 {[%emt 0:00:28]} 47. Rxd6+ {[%emt 0:00:05]} Kxd6 {[%emt 0:00:05]} 48. Bxb4+ {[%emt 0:00:04]} Kd5 {[%emt 0:00:50]} 49. Be7 {[%emt 0:00:32]} Ra6 50. Kf1 {[%emt 0:00:30]} Kxd4 {[%emt 0:00:50]} 51. Kg2 {[%emt 0:00:04]} Ke4 {[%emt 0:00:37]} 52. Bd8 {[%emt 0:00:23]} Kf5 {[%emt 0:00:36]} 53. Be7 {[%emt 0:00:13]} Ra7 {[%emt 0:00:25]} 54. Bc5 {[%emt 0:00:06]} Rd7 {[%emt 0:00:13]} 55. Be3 {[%emt 0:00:05]} Ke4 {[%emt 0:00:18]} 56. Bc5 {[%emt 0:00:25]} Rc7 {[%emt 0:00:56]} 57. Be3 {[%emt 0:00:15]} Rc2 {[%emt 0:00:15]} 58. Bb6 {[%emt 0:00:16]} Rd2 $2 {[%emt 0:00:44]} (58... f5 59. Bd8 g4) 59. Bc5 {[%emt 0:00:30]} Kf5 {[%emt 0:00:29]} 60. Be3 {[%emt 0:00:12]} Rd1 {[%emt 0:00:35]} 61. Bc5 {[%emt 0:00:17]} Kg4 {[%emt 0:00:28]} 62. Be7 {[%emt 0:00:17]} f5 {[%emt 0:00:29]} 63. f3+ {[%emt 0:00:33]} Kh5 {[%emt 0:00:06]} 64. f4 {[%emt 0:00:54]} Rd2+ {[%emt 0:01:02]} 65. Kf1 {[%emt 0:00:43]} g4 {[%emt 0:00:15]} 66. Bc5 {[%emt 0:00:26]} Kg6 {[%emt 0:00:11]} 67. Be3 {[%emt 0:00:12]} Ra2 {[%emt 0:00:18]} 68. Bd4 {[%emt 0:00:14]} Kf7 {[%emt 0:00:06]} 69. Kg1 {[%emt 0:00:32]} Ke6 {[%emt 0:00:09]} 70. Kh1 $19 {[%emt 0:00:24]} Kd5 {[%emt 0:00:08]} 71. Bg1 {[%emt 0:01:11]} Ke4 {[%emt 0:00:30]} 72. Bh2 {[%emt 0:00:33]} Kf3 {[%emt 0:00:11]} 73. Bg1 {[%emt 0:00:03]} Kxg3 {[%emt 0:00:15]} 74. Be3 {[%emt 0:00:00]} Rh2+ {[%emt 0:00:32]} 75. Kg1 {[%emt 0:00:00]} Re2 {[%emt 0:00:05]} 0-1

[Event "Bhopal GM Open 2019"]
[Site "Bhopal"]
[Date "2019.12.25"]
[Round "7.20"]
[White "Satvik Sharma"]
[Black "Trivedi Karan R"]
[Result "0-1"]
[ECO "A45"]
[WhiteElo "1740"]
[BlackElo "1949"]
[Annotator "NA RC"]
[PlyCount "66"]
[EventDate "2019.12.21"]
[EventType "swiss"]
[EventCountry "IND"]
[SourceTitle "playchess.com"]
[Source "ChessBase"]
[SourceQuality "1"]
[TimeControl "5400+30"]

{[%evp 10,60,38,32767,32767,32767,32767,32767,32767,32767,32767,32767,32767,32767,71,32767,46,26,35,35,7,0,0,-30,0,1,46,0,0,0,64,-18,-8,0,305,62,126,32767,32767,32767,75,-115,-57,32767,32767,32767,32767,32767,32767,32767,-2228,-1867,-733]} 1. d4 Nf6 {[%emt 0:00:00]} 2. Bf4 {[%emt 0:00:00]} g6 {[%emt 0:00:59]} 3. Nc3 {[%emt 0:00:00]} Bg7 {[%emt 0:01:29]} 4. e4 {[%emt 0:00:00]} d6 {[%emt 0:00:59]} 5. Qd2 {[%emt 0:00:00]} O-O {[%emt 0:06:03]} 6. O-O-O {[%emt 0:00:20]} c6 {[%emt 0:08:20] B07: Pirc Defence: Miscellaneous Systems} 7. h4 {[%emt 0:03:08]} (7. f3 b5 8. Kb1 a5 9. Bh6 a4 10. e5 dxe5 11. Bxg7 Kxg7 12. dxe5 Nfd7 13. h4 h5 14. e6 fxe6 {1-0 (44) Nihal,S (2598)-Sevian,S (2666) chess.com INT 2019}) 7... b5 {[%emt 0:00:27]} 8. f3 {[%emt 0:00:42]} b4 {[%emt 0:00:56]} 9. Nce2 {[%emt 0:01:32]} Qa5 {[%emt 0:01:59]} 10. Kb1 {[%emt 0:00:58]} c5 $146 {[%emt 0:04:35]} ({Predecessor:} 10... Be6 11. Nc1 Nbd7 12. Bh6 Bxh6 13. Qxh6 Nb6 14. Nb3 {1-0 (29) Alahakoon,I (2091)-Kumara,C (1839) Colombo 2018}) 11. h5 {[%emt 0:12:45]} Nc6 {[%emt 0:08:50]} 12. Bh6 {[%emt 0:05:52]} b3 {[%emt 0:01:19]} ({Wrong is} 12... Nxh5 $2 {[#]} 13. Rxh5 $1 {[%mdl 512]} b3 14. Qxa5 $18) 13. axb3 {[%emt 0:11:20]} Qxd2 $1 {[%emt 0:01:02]} ({Don't play} 13... Bxh6 $6 14. Qxh6 cxd4 15. hxg6 $16) 14. Bxd2 {[%emt 0:00:05]} cxd4 {[%emt 0:00:52]} 15. hxg6 {[%emt 0:03:36]} hxg6 {[%emt 0:00:13]} 16. Nh3 {[%emt 0:04:13]} e5 {[%emt 0:00:14]} 17. Nc1 {[%emt 0:06:00]} d5 {[%emt 0:07:04]} 18. exd5 {[%emt 0:02:00]} (18. Bb5 $5 {[%cal Rb5c6]} Bd7 19. exd5 Nxd5 20. Nd3 $14) 18... Nxd5 {[%emt 0:00:13]} 19. Ng5 {[%emt 0:03:03]} Ncb4 {[%emt 0:02:40]} (19... a5 $11) 20. Nd3 {[%emt 0:09:26]} (20. Bc4 $16) 20... a5 {[%emt 0:01:14]} 21. Nc5 {[%emt 0:04:05]} Be6 $2 {[%emt 0:00:42]} (21... Bf5 $11 22. Nce4 a4) 22. Nce4 $2 {[%emt 0:00:20]} (22. Ncxe6 $18 fxe6 23. Bc4) 22... a4 {[%emt 0:03:35]} 23. c3 {[%emt 0:08:49]} Nc6 {[%emt 0:02:10]} 24. b4 {[%emt 0:02:03]} Rfc8 {[%emt 0:05:43]} (24... a3 $1 $11 {keeps the balance.}) 25. Ka1 $2 {[%emt 0:05:09] [#]} (25. Nxe6 $16 fxe6 26. g3) 25... a3 $1 {[%emt 0:00:44]} 26. b3 {[%emt 0:04:13]} dxc3 {[%emt 0:00:35]} 27. Bc4 {[%emt 0:00:29]} Ncxb4 {[%emt 0:02:22]} 28. Bxc3 {[%emt 0:05:03]} Nxc3 {[%emt 0:01:39]} 29. Nxc3 {[%emt 0:00:06]} e4 {[%emt 0:01:05]} 30. Rc1 {[%emt 0:00:51] e} exf3 $19 {[%emt 0:00:40]} (30... Bxc4 $142 31. bxc4 exf3) 31. Bxe6 {[%emt 0:05:54]} Kf8 {[%emt 0:00:11]} 32. Bxf7 {[%emt 0:00:27]} Rc5 33. Be6 Rxc3 {[%emt 0:00:49]} 0-1